bitfinex/quotes_SOLUSD_20240620
["timestamp","ask_amount","ask_price","bid_price","bid_amount"]
[1718916819749,9.37,134.56,134.51,9.37]
[1718916820745,9.37,134.55,134.5,9.37]
[1718916822437,9.37,134.55,134.45,22.1817]
[1718916822644,9.37,134.55,134.5,9.37]
[1718916822947,6.0605,134.57,134.5,9.37]
[1718916823139,9.37,134.55,134.5,9.37]
[1718916826553,9.37,134.55,134.49,9.37]
[1718916828928,9.37,134.54,134.45,22.1817]
[1718916829128,9.37,134.54,134.49,9.37]
[1718916829532,9.37,134.54,134.45,22.1817]
[1718916829829,9.37,134.54,134.49,9.37]
[1718916830238,9.37,134.53,134.46,20.0]
[1718916830449,9.37,134.52,134.46,20.0]
[1718916830645,9.37,134.51,134.46,29.37]
[1718916831636,9.37,134.52,134.46,29.37]
[1718916832239,9.37,134.52,134.47,9.37]
[1718916832640,7.78097498,134.55,134.48,9.37]
[1718916832860,9.37,134.54,134.49,9.37]
[1718916836772,9.37,134.53,134.48,9.37]
[1718916837078,9.37,134.54,134.46,20.0]
[1718916837258,9.37,134.54,134.49,9.37]
[1718916837653,21.0413064,134.56,134.47,9.37]
[1718916837987,15.4305,134.57,134.52,9.37]
[1718916838166,30.0,134.53,134.52,9.37]
[1718916839983,30.0,134.53,134.5,9.37]
[1718916840361,9.37,134.55,134.5,9.37]
[1718916840779,9.37,134.55,134.49,9.37]
[1718916841280,9.37,134.54,134.48,20.0]
[1718916841469,9.37,134.54,134.48,9.37]
[1718916841673,9.37,134.53,134.48,9.37]
[1718916842182,9.37,134.51,134.46,9.37]
[1718916842590,9.37,134.5,134.45,15.8553]
[1718916844290,9.37,134.49,134.44,9.37]
[1718916844658,6.0944,134.52,134.44,9.37]
[1718916844659,9.37,134.5,134.44,9.37]
[1718916845071,9.37,134.51,134.45,9.37]
[1718916846182,9.37,134.51,134.42,15.4882]
[1718916846377,9.37,134.5,134.45,9.37]
[1718916847668,9.37,134.5,134.44,1.95532097]
[1718916847869,9.37,134.5,134.45,9.37]
[1718916848281,9.37,134.52,134.47,9.37]
[1718916848871,9.37,134.52,134.46,9.37]
[1718916849185,9.37,134.52,134.47,9.37]
[1718916850277,9.37,134.52,134.43,20.0]
[1718916850486,9.37,134.51,134.46,9.37]
[1718916850990,9.37,134.51,134.45,9.37]
[1718916851194,9.37,134.5,134.45,9.37]
[1718916855191,9.37,134.51,134.45,9.37]
[1718916855401,9.37,134.5,134.45,9.37]
[1718916855573,9.37,134.52,134.46,9.37]
[1718916857490,9.37,134.51,134.46,9.37]
[1718916857699,9.37,134.51,134.43,20.0]
[1718916857904,9.37,134.51,134.46,9.37]
[1718916858193,9.37,134.51,134.43,20.0]
[1718916858591,9.37,134.51,134.45,9.37]
[1718916859778,9.37,134.51,134.43,20.0]
[1718916859972,9.37,134.51,134.45,9.37]
[1718916860471,9.37,134.48,134.42,15.4882]
[1718916860797,9.37,134.48,134.43,9.37]
[1718916860971,9.37,134.49,134.44,9.37]
[1718916861292,9.37,134.5,134.42,15.4882]
[1718916861475,9.37,134.5,134.45,9.37]
[1718916861676,9.37,134.5,134.44,9.37]
[1718916862178,30.0,134.47,134.44,9.37]
[1718916862585,30.0,134.47,134.42,15.4882]
[1718916862788,30.0,134.47,134.44,9.37]
[1718916862991,30.0,134.47,134.42,15.4882]
[1718916863186,30.0,134.47,134.44,9.37]
[1718916863388,30.0,134.47,134.42,15.4882]
[1718916863594,30.0,134.47,134.44,9.37]
[1718916863799,9.37,134.48,134.43,9.37]
[1718916864217,66.85827373,134.54,134.43,9.37]
[1718916864392,9.37,134.49,134.43,9.37]
[1718916864586,9.37,134.49,134.42,15.4882]
[1718916864791,9.37,134.48,134.42,15.4882]
[1718916865590,30.0,134.46,134.42,24.8582]
[1718916866097,30.0,134.46,134.44,9.37]
[1718916866285,30.0,134.46,134.45,9.37]
[1718916866810,15.8629,134.5,134.45,9.37]
[1718916867280,9.37,134.49,134.44,9.37]
[1718916867477,9.37,134.49,134.42,15.4882]
[1718916867698,9.37,134.49,134.43,9.37]
[1718916867892,9.37,134.47,134.42,9.37]
[1718916868293,9.37,134.47,134.41,9.37]
[1718916868499,9.37,134.47,134.38,15.6244]
[1718916868695,9.37,134.47,134.41,9.37]
[1718916870221,30.0,134.45,134.41,9.37]
[1718916870523,30.0,134.45,134.4,9.37]
[1718916870688,39.37,134.45,134.38,15.6244]
[1718916870889,39.37,134.45,134.4,9.37]
[1718916872610,39.37,134.45,134.39,20.0]
[1718916872810,39.37,134.45,134.4,9.37]
[1718916876721,9.37,134.44,134.36,0.8411099]
[1718916876897,9.37,134.43,134.38,9.37]
[1718916877089,39.37,134.43,134.38,9.37]
[1718916877823,39.37,134.43,134.36,0.8411099]
[1718916878028,39.37,134.43,134.38,9.37]
[1718916880002,39.37,134.43,134.36,0.8411099]
[1718916880200,39.37,134.43,134.38,9.37]
[1718916883516,30.0,134.43,134.38,9.37]
[1718916883826,30.0,134.43,134.39,9.37]
[1718916890032,30.0,134.43,134.4,26.0292]
[1718916890225,30.0,134.43,134.42,9.37]
[1718916890432,22.7117,134.52,134.42,29.37]
[1718916890623,22.7117,134.52,134.4,54.1392]
[1718916890624,9.37,134.47,134.41,2.9708206]
[1718916890931,9.37,134.47,134.42,9.37]
[1718916890932,32.0817,134.47,134.42,9.37]
[1718916891730,22.7117,134.47,134.42,9.37]
[1718916891912,22.7117,134.47,134.44,9.37]
[1718916892326,30.0,134.45,134.44,9.37]
[1718916893121,30.0,134.45,134.41,20.0]
[1718916893421,16.5853,134.47,134.43,9.37]
[1718916894124,16.5853,134.47,134.43,14.18146531]
[1718916894743,16.5853,134.47,134.43,9.37]
[1718916897447,9.37,134.48,134.43,9.37]
[1718916898731,9.37,134.48,134.41,20.0]
[1718916898933,9.37,134.48,134.43,9.37]
[1718916900334,9.37,134.47,134.38,20.0]
[1718916900648,9.37,134.48,134.43,9.37]
[1718916903535,29.45271545,134.5,134.45,9.37]
[1718916903736,30.0,134.46,134.45,9.37]
[1718916904327,30.0,134.46,134.44,9.37]
[1718916910970,30.0,134.46,134.43,9.37]
[1718916911345,30.0,134.46,134.44,0.44069152]
[1718916912460,30.0,134.46,134.43,9.37]
[1718916912680,30.0,134.46,134.44,9.37]
[1718916913682,30.0,134.46,134.41,16.56]
[1718916913891,30.0,134.46,134.41,25.93]
[1718916914367,39.37,134.46,134.41,25.93]
[1718916915974,30.0,134.46,134.41,16.56]
[1718916916188,30.0,134.46,134.43,9.37]
[1718916918792,30.0,134.46,134.42,9.37]
[1718916919780,29.5,134.46,134.42,9.37]
[1718916923691,29.5,134.46,134.41,16.56]
[1718916923895,29.5,134.46,134.42,9.37]
[1718916926170,38.87,134.46,134.41,9.37]
[1718916928395,15.4635,134.45,134.36,0.8411099]
[1718916928573,9.37,134.42,134.36,0.8411099]
[1718916928769,9.37,134.42,134.37,9.37]
[1718916930095,30.0,134.44,134.37,9.37]
[1718916930308,9.37,134.43,134.37,9.37]
[1718916930470,9.37,134.43,134.38,1.48599709]
[1718916930676,30.0,134.41,134.37,12.32464303]
[1718916931676,30.0,134.41,134.37,9.37]
[1718916932491,30.0,134.41,134.38,2.95420328]
[1718916932698,30.0,134.41,134.37,9.37]
[1718916932894,30.0,134.41,134.38,9.37]
[1718916940102,30.0,134.41,134.36,0.8411099]
[1718916940293,30.0,134.41,134.37,9.37]
[1718916941292,30.0,134.41,134.36,20.8411099]
[1718916941497,39.37,134.41,134.36,0.8411099]
[1718916941688,9.37,134.4,134.36,0.8411099]
[1718916942899,30.0,134.39,134.36,0.8411099]
[1718916944490,30.0,134.39,134.36,10.2111099]
[1718916945602,30.0,134.39,134.36,9.25753838]
[1718916947314,30.0,134.39,134.34,20.0]
[1718916947315,9.37,134.38,134.31,16.437]
[1718916947601,9.37,134.38,134.33,9.37]
[1718916948283,9.37,134.38,134.31,16.437]
[1718916948484,9.37,134.38,134.33,9.37]
[1718916948485,30.0,134.37,134.33,9.37]
[1718916955208,30.0,134.37,134.28,15.9786]
[1718916955391,30.0,134.37,134.33,9.37]
[1718916964620,30.0,134.37,134.28,15.9786]
[1718916964793,30.0,134.37,134.33,9.37]
[1718916965314,30.0,134.37,134.29,20.0]
[1718916965515,30.0,134.37,134.33,9.37]
[1718916967413,30.0,134.37,134.32,9.37]
[1718916970117,30.0,134.37,134.29,20.0]
[1718916970417,30.0,134.37,134.32,9.37]
[1718916971011,9.37,134.36,134.31,9.37]
[1718916973033,30.0,134.35,134.31,9.37]
[1718916978116,45.585,134.35,134.29,20.0]
[1718916978508,54.955,134.35,134.29,20.0]
[1718916978813,54.955,134.35,134.29,9.37]
[1718916979013,54.955,134.35,134.26,57.48]
[1718916979320,54.955,134.35,134.3,9.37]
[1718916980019,54.955,134.35,134.26,57.48]
[1718916980212,54.955,134.35,134.3,9.37]
[1718916982021,54.955,134.35,134.26,57.48]
[1718916982217,54.955,134.35,134.3,9.37]
[1718916982721,45.585,134.35,134.26,57.48]
[1718916982918,45.585,134.35,134.26,20.0]
[1718916983126,45.585,134.35,134.31,9.37]
[1718916983900,45.585,134.35,134.27,0.86574014]
[1718916984115,45.585,134.35,134.31,9.37]
[1718916986399,30.0,134.35,134.34,9.37]
[1718916986824,30.0,134.35,134.33,9.37]
[1718916997332,37.48,134.47,134.35,16.6405]
[1718916997333,15.61183076,134.46,134.35,16.6405]
[1718916997533,31.6071,134.47,134.42,9.37]
[1718916997854,31.6071,134.47,134.36,26.7479]
[1718916997855,22.2371,134.47,134.43,9.37]
[1718916998934,5.23646832,134.51,134.42,15.9561]
[1718916999131,15.8535,134.52,134.47,9.37]
[1718916999834,9.37,134.51,134.46,9.37]
[1718917001113,9.37,134.5,134.45,9.37]
[1718917004142,9.37,134.49,134.44,9.37]
[1718917005828,30.0,134.47,134.44,9.37]
[1718917010148,30.0,134.47,134.45,9.37]
[1718917010760,30.0,134.47,134.46,11.5986305]
[1718917010929,15.7353,134.53,134.46,29.37]
[1718917011245,15.7353,134.53,134.49,9.37]
[1718917015440,25.1053,134.53,134.48,9.37]
[1718917015951,15.7353,134.53,134.49,9.37]
[1718917016362,25.1053,134.53,134.48,9.37]
[1718917020171,25.1053,134.53,134.46,20.0]
[1718917020408,9.37,134.52,134.47,9.37]
[1718917020552,9.37,134.52,134.46,9.37]
[1718917021974,30.0,134.49,134.46,9.37]
[1718917026174,30.0,134.49,134.47,9.37]
[1718917027476,30.0,134.49,134.46,9.37]
[1718917031783,9.37,134.47,134.42,9.37]
[1718917032482,9.37,134.47,134.39,21.7998]
[1718917032682,9.37,134.47,134.42,9.37]
[1718917033377,30.0,134.45,134.42,9.37]
[1718917033583,30.0,134.45,134.39,21.7998]
[1718917033772,30.0,134.45,134.42,9.37]
[1718917035170,30.0,134.45,134.43,9.37]
[1718917035880,30.0,134.45,134.44,9.37]
[1718917036080,30.0,134.45,134.43,9.37]
[1718917040292,30.0,134.45,134.42,9.37]
[1718917043485,30.0,134.45,134.36,265.5672]
[1718917043668,30.0,134.45,134.41,9.37]
[1718917048274,30.0,134.45,134.42,9.37]
[1718917050418,9.37,134.44,134.39,9.37]
[1718917050698,30.0,134.45,134.41,9.37]
[1718917051373,30.0,134.45,134.4,9.37]
[1718917051774,30.0,134.43,134.4,9.37]
[1718917055589,30.0,134.43,134.35,16.3006]
[1718917055765,30.0,134.43,134.39,9.37]
[1718917058288,30.0,134.43,134.42,9.37]
[1718917059808,6.389,134.46,134.42,9.37]
[1718917060092,6.389,134.46,134.44,9.37]
[1718917060287,30.0,134.45,134.44,9.37]
[1718917060474,30.0,134.45,134.4,9.37]
[1718917060475,30.0,134.45,134.43,9.37]
[1718917061391,30.0,134.45,134.42,9.37]
[1718917062279,30.0,134.45,134.43,9.37]
[1718917065489,30.0,134.45,134.44,9.37]
[1718917065710,30.0,134.45,134.41,1.97585161]
[1718917065875,30.0,134.45,134.43,9.37]
[1718917067480,30.0,134.45,134.42,9.37]
[1718917070783,30.0,134.45,134.41,9.37]
[1718917075289,30.0,134.45,134.35,16.3006]
[1718917075489,30.0,134.45,134.4,9.37]
[1718917080210,30.0,134.45,134.41,9.37]
[1718917083606,30.0,134.45,134.35,16.3006]
[1718917083806,30.0,134.45,134.4,9.37]
[1718917085917,30.0,134.45,134.41,9.37]
[1718917086216,30.0,134.45,134.42,9.37]
[1718917088721,30.0,134.45,134.41,9.37]
[1718917094429,30.0,134.45,134.37,4.04276838]
[1718917094602,30.0,134.45,134.38,9.37]
[1718917094603,9.37,134.43,134.38,9.37]
[1718917094808,9.37,134.43,134.37,9.37]
[1718917095218,30.0,134.42,134.37,9.37]
[1718917095429,30.0,134.42,134.38,9.37]
[1718917098420,30.0,134.42,134.35,16.3006]
[1718917098621,30.0,134.42,134.38,9.37]
[1718917100312,30.0,134.42,134.37,9.37]
[1718917101223,6.1689,134.41,134.37,9.37]
[1718917101534,30.0,134.4,134.37,9.37]
[1718917101714,30.0,134.4,134.32,15.2323]
[1718917101910,30.0,134.4,134.36,9.37]
[1718917103625,30.0,134.4,134.37,9.37]
[1718917104740,30.0,134.4,134.39,9.37]
[1718917104939,30.0,134.4,134.39,29.37]
[1718917105121,6.4704,134.46,134.39,29.37]
[1718917105319,6.4704,134.46,134.42,9.37]
[1718917105847,30.0,134.43,134.42,9.37]
[1718917107442,6.4704,134.46,134.42,9.37]
[1718917107961,25.8271,134.47,134.44,9.37]
[1718917107962,16.4571,134.47,134.44,9.37]
[1718917108120,30.0,134.45,134.44,9.37]
[1718917110047,30.0,134.45,134.42,9.37]
[1718917111154,30.0,134.45,134.39,20.0]
[1718917111155,39.37,134.45,134.39,20.0]
[1718917111445,39.37,134.45,134.4,9.37]
[1718917112148,9.37,134.45,134.38,20.0]
[1718917112450,9.37,134.45,134.4,9.37]
[1718917112747,9.37,134.46,134.41,9.37]
[1718917113151,9.37,134.46,134.4,9.37]
[1718917117546,39.37,134.44,134.34,21.8994]
[1718917117863,9.37,134.42,134.37,9.37]
[1718917119050,24.6282,134.42,134.34,15.4469]
[1718917119251,24.6282,134.42,134.37,9.37]
[1718917119863,15.2582,134.42,134.38,9.37]
[1718917122147,30.0,134.44,134.4,9.37]
[1718917122864,30.0,134.44,134.39,9.37]
[1718917125541,39.37,134.44,134.39,9.37]
[1718917130669,30.0,134.44,134.34,15.4469]
[1718917130968,9.37,134.43,134.38,9.37]
[1718917131643,30.0,134.41,134.38,9.37]
[1718917133268,30.0,134.41,134.39,9.37]
[1718917133864,22.4214,134.45,134.4,9.37]
[1718917134041,31.7914,134.45,134.4,9.37]
[1718917140457,9.37,134.44,134.39,9.37]
[1718917141471,22.4214,134.45,134.39,9.37]
[1718917142466,9.37,134.44,134.39,9.37]
[1718917145456,22.4214,134.45,134.39,9.37]
[1718917145652,5.37306983,134.46,134.41,9.37]
[1718917145960,9.37,134.47,134.41,9.37]
[1718917146164,30.0,134.42,134.41,9.37]
[1718917147076,9.37,134.46,134.41,9.37]
[1718917147665,21.1642,134.48,134.42,6.20290003]
[1718917147852,21.1642,134.48,134.44,9.37]
[1718917148680,21.1642,134.48,134.43,9.37]
[1718917149480,9.37,134.47,134.42,9.37]
[1718917155285,21.1642,134.48,134.39,15.1363]
[1718917155464,9.37,134.44,134.39,24.5063]
[1718917156394,9.37,134.45,134.4,9.37]
[1718917157569,9.37,134.47,134.39,15.1363]
[1718917157781,9.37,134.47,134.41,9.37]
[1718917159793,9.37,134.46,134.41,9.37]
[1718917160385,9.37,134.46,134.4,9.37]
[1718917162774,9.37,134.45,134.4,9.37]
[1718917163191,9.37,134.46,134.4,9.37]
[1718917163397,9.37,134.45,134.4,9.37]
[1718917164481,9.37,134.46,134.4,9.37]
[1718917164694,9.37,134.46,134.4,10.85462206]
[1718917165001,9.37,134.46,134.4,9.37]
[1718917165302,9.37,134.46,134.4,5.11307918]
[1718917165505,21.1642,134.48,134.41,9.37]
[1718917165703,9.37,134.47,134.41,9.37]
[1718917167980,21.1642,134.48,134.4,5.11307918]
[1718917167981,9.37,134.46,134.4,9.37]
[1718917170407,18.4853845,134.5,134.43,9.37]
[1718917170580,7.75242372,134.5,134.46,9.37]
[1718917170897,98.220304,134.53,134.43,16.5862]
[1718917170898,9.37,134.52,134.47,9.37]
[1718917171076,103.77706624,134.53,134.47,9.37]
[1718917171405,9.37,134.52,134.47,9.37]
[1718917172294,9.37,134.51,134.46,9.37]
[1718917175017,9.37,134.51,134.44,6.1461]
[1718917175303,9.37,134.51,134.46,9.37]
[1718917175807,9.37,134.51,134.47,9.37]
[1718917175994,9.37,134.52,134.47,9.37]
[1718917176303,9.37,134.51,134.46,9.37]
[1718917176522,9.37,134.52,134.46,9.37]
[1718917177015,9.37,134.51,134.44,6.1461]
[1718917177197,9.37,134.51,134.45,9.37]
[1718917177380,9.37,134.51,134.46,9.37]
[1718917179807,37.48,134.54,134.46,9.37]
[1718917180015,9.37,134.51,134.46,9.37]
[1718917180192,28.94238432,134.55,134.44,6.1461]
[1718917180391,28.94238432,134.55,134.49,9.37]
[1718917180799,5.50160484,134.55,134.49,9.37]
[1718917181091,9.37,134.54,134.49,9.37]
[1718917182812,6.4726,134.56,134.49,9.37]
[1718917183019,11.88633481,134.56,134.45,20.0]
[1718917183197,9.37,134.51,134.46,9.37]
[1718917183401,9.37,134.51,134.44,21.9846]
[1718917183620,9.37,134.51,134.46,9.37]
[1718917184423,16.1057,134.53,134.46,9.37]
[1718917184623,9.37,134.51,134.46,9.37]
[1718917186504,16.1057,134.53,134.48,9.37]
[1718917186826,25.4757,134.53,134.48,9.37]
[1718917187024,9.37,134.52,134.47,9.37]
[1718917187728,25.4757,134.53,134.48,9.37]
[1718917188701,9.37,134.53,134.48,9.37]
[1718917192504,9.37,134.54,134.48,9.37]
[1718917192925,43.63398129,134.56,134.48,9.37]
[1718917193127,9.37,134.54,134.48,9.37]
[1718917194013,9.37,134.53,134.48,9.37]
[1718917194413,43.63398129,134.56,134.48,9.37]
[1718917194724,9.37,134.54,134.48,9.37]
[1718917194920,9.37,134.53,134.48,9.37]
[1718917197130,43.63398129,134.56,134.48,9.37]
[1718917197528,9.37,134.55,134.49,9.37]
[1718917199324,43.63398129,134.56,134.49,9.37]
[1718917199719,9.37,134.55,134.49,9.37]
[1718917203129,43.63398129,134.56,134.44,21.9846]
[1718917203333,43.63398129,134.56,134.45,20.0]
[1718917203334,68.30221489,134.55,134.45,20.0]
[1718917203512,71.5889888,134.55,134.47,9.37]
[1718917203714,9.37,134.54,134.45,20.0]
[1718917204031,9.37,134.54,134.48,9.37]
[1718917204427,26.5889888,134.55,134.49,9.37]
[1718917204636,9.37,134.54,134.49,9.37]
[1718917204934,30.0,134.5,134.49,9.37]
[1718917205732,9.37,134.54,134.49,9.37]
[1718917206511,6.5889888,134.55,134.49,9.37]
[1718917206711,9.37,134.54,134.49,9.37]
[1718917206929,7.75393458,134.56,134.48,15.2223]
[1718917207130,7.75393458,134.56,134.52,9.37]
[1718917207322,9.37,134.57,134.51,9.37]
[1718917207630,9.37,134.57,134.52,9.37]
[1718917208433,17.63893968,134.6,134.53,24.3732]
[1718917208640,7.74773599,134.6,134.56,9.37]
[1718917208937,15.5526604,134.66,134.58,9.37]
[1718917208938,16.1216,134.66,134.58,9.37]
[1718917209238,17.11443685,134.65,134.59,29.37]
[1718917209425,9.37,134.64,134.59,20.0]
[1718917209620,21.58474666,134.66,134.59,20.0]
[1718917209621,9.37,134.63,134.59,20.0]
[1718917209829,9.37,134.63,134.58,9.37]
[1718917210012,9.37,134.62,134.57,9.37]
[1718917210842,9.37,134.62,134.58,9.37]
[1718917211042,9.37,134.62,134.54,6.1143]
[1718917211236,9.37,134.59,134.54,6.1143]
[1718917211441,9.37,134.55,134.5,6.2887]
[1718917211753,9.37,134.55,134.5,15.6587]
[1718917212323,9.37,134.53,134.49,15.8118]
[1718917212745,9.37,134.54,134.49,25.1818]
[1718917213050,9.37,134.54,134.49,15.8118]
[1718917213216,39.37,134.52,134.46,22.0186]
[1718917213420,39.37,134.52,134.47,29.37]
[1718917213639,39.37,134.52,134.47,20.0]
[1718917213830,39.37,134.52,134.47,29.37]
[1718917214031,9.37,134.51,134.37,259.3]
[1718917214221,9.37,134.51,134.42,6.3071]
[1718917214425,30.0,134.5,134.46,9.37]
[1718917214627,39.37,134.5,134.45,9.37]
[1718917214833,39.37,134.5,134.42,6.3071]
[1718917215143,30.0,134.5,134.46,9.37]
[1718917215437,30.0,134.5,134.42,6.3071]
[1718917215741,39.37,134.5,134.45,9.37]
[1718917216045,30.0,134.5,134.45,9.37]
[1718917216225,30.0,134.5,134.46,9.37]
[1718917217141,30.0,134.5,134.47,9.37]
[1718917218846,30.0,134.5,134.42,6.3071]
[1718917219140,30.0,134.5,134.43,20.0]
[1718917219320,39.37,134.5,134.45,9.37]
[1718917220343,39.37,134.5,134.46,9.37]
[1718917220344,30.0,134.5,134.46,9.37]
[1718917221040,30.0,134.5,134.47,9.37]
[1718917223929,30.0,134.5,134.43,20.0]
[1718917223930,30.0,134.5,134.46,9.37]
[1718917224549,30.0,134.5,134.47,9.37]
[1718917225528,9.37,134.52,134.43,20.0]
[1718917225730,9.37,134.52,134.47,9.37]
[1718917229362,9.37,134.51,134.46,9.37]
[1718917229831,9.37,134.51,134.45,9.37]
[1718917230032,9.37,134.51,134.46,29.37]
[1718917230250,9.37,134.51,134.46,9.37]
[1718917230450,29.72499924,134.54,134.47,9.37]
[1718917230656,9.37,134.52,134.47,9.37]
[1718917232545,9.37,134.53,134.47,9.37]
[1718917233158,9.37,134.52,134.47,9.37]
[1718917238954,29.72499924,134.54,134.47,9.37]
[1718917239159,9.37,134.52,134.47,9.37]
[1718917241841,9.37,134.52,134.43,20.0]
[1718917242043,9.37,134.51,134.43,20.0]
[1718917242280,9.37,134.51,134.46,9.37]
[1718917242747,9.37,134.5,134.45,9.37]
[1718917242946,9.37,134.5,134.46,20.0]
[1718917243167,9.37,134.51,134.46,20.0]
[1718917244167,9.37,134.51,134.46,29.37]
[1718917245043,30.0,134.49,134.46,29.37]
[1718917248568,30.0,134.49,134.46,20.0]
[1718917248961,30.0,134.49,134.46,29.37]
[1718917251567,30.0,134.49,134.47,9.37]
[1718917251864,29.72499924,134.54,134.48,9.37]
[1718917252258,31.3488,134.54,134.48,9.37]
[1718917253867,5.65307927,134.55,134.49,9.37]
[1718917254062,9.37,134.55,134.5,9.37]
[1718917258786,14.94178311,134.56,134.5,9.37]
[1718917258960,14.94178311,134.56,134.51,9.37]
[1718917259161,30.0,134.52,134.51,9.37]
[1718917259955,30.0,134.52,134.5,9.37]
[1718917260880,9.37,134.55,134.5,9.37]
[1718917261056,9.37,134.54,134.47,6.3077]
[1718917261258,5.57178311,134.56,134.48,20.0]
[1718917261452,5.57178311,134.56,134.51,9.37]
[1718917261453,9.37,134.56,134.51,9.37]
[1718917270199,28.89677411,134.58,134.51,9.37]
[1718917270368,9.37,134.56,134.51,9.37]
[1718917270765,9.37,134.55,134.5,9.37]
[1718917272269,28.89677411,134.58,134.5,9.37]
[1718917272471,9.37,134.56,134.5,9.37]
[1718917273989,9.37,134.56,134.51,9.37]
[1718917278993,9.37,134.56,134.48,20.0]
[1718917279168,9.37,134.54,134.48,20.0]
[1718917279492,9.37,134.54,134.49,9.37]
[1718917279693,9.37,134.54,134.5,20.0]
[1718917280775,9.37,134.52,134.46,16.1211]
[1718917280974,9.37,134.52,134.46,25.4911]
[1718917282087,30.0,134.51,134.46,25.4911]
[1718917282293,30.0,134.51,134.47,9.37]
[1718917284377,30.0,134.51,134.46,16.1211]
[1718917284579,30.0,134.51,134.47,9.37]
[1718917285306,30.0,134.51,134.46,16.1211]
[1718917285485,39.37,134.51,134.46,25.4911]
[1718917286088,30.0,134.51,134.47,9.37]
[1718917293492,30.0,134.51,134.48,9.37]
[1718917294388,30.0,134.51,134.46,16.1211]
[1718917294602,30.0,134.51,134.48,9.37]
[1718917296401,15.04491938,134.53,134.48,9.37]
[1718917296706,9.37,134.53,134.48,9.37]
[1718917297112,9.37,134.51,134.46,25.4911]
[1718917298003,9.37,134.5,134.46,16.1211]
[1718917301113,15.5582,134.53,134.46,25.4911]
[1718917301299,9.37,134.51,134.46,25.4911]
[1718917302809,7.75664564,134.55,134.47,9.37]
[1718917303002,6.3858,134.59,134.5,22.9436]
[1718917303208,22.452,134.62,134.55,9.37]
[1718917303414,9.37,134.61,134.56,29.37]
[1718917303916,22.452,134.62,134.56,29.37]